Cogmind - Beta 15 @@@ ROGUE MODE // 2025.06.29 @ 15:13:01 Player: StaticNoob Result: Destroyed by H-55 Commando with Gauss Rifle Performance ------------- Evolutions (0) 0 Regions Visited (3) 600 Robots Destroyed (25) 125 Value Destroyed (533) 533 Prototype IDs (2) 40 Alien Tech Used (0) 0 Bonus (0) 0 TOTAL SCORE: 1298 Bonus ------- None Cogmind --------- Core Integrity 0/250 Matter 300/300 Energy 230/250 System Corruption 1% Temperature Warning (314) Movement Rolling (120) Ox2 Location -8/Recycling Parts ------- > --- POWER (1) -------- Ion Engine > --- PROPULSION (2) --- Wheel Compact Wheel > --- UTILITY (2) ------ High-capacity Storage Unit Targeting Computer > --- WEAPON (2) ------- Beam Cannon Heavy Particle Cannon > --- INVENTORY (20) --- Ion Engine Light Ion Engine Wheel Seismic Detector Seismic Detector Seismic Detector Targeting Computer Particle Charger ECM Suite Scrap Shield Particle Cannon Particle Cannon Particle Cannon Particle Cannon Shotgun Shotgun Shotgun Shotgun Hammer Peak State ------------ > --- POWER ------------ Ion Engine > --- PROPULSION ------- Wheel Compact Wheel > --- UTILITY ---------- High-capacity Storage Unit Targeting Computer > --- WEAPON ----------- Beam Cannon Heavy Particle Cannon > --- INVENTORY -------- Ion Engine Light Ion Engine Wheel Seismic Detector Seismic Detector Seismic Detector Targeting Computer Particle Charger ECM Suite Scrap Shield Particle Cannon Particle Cannon Particle Cannon Particle Cannon Shotgun Shotgun Shotgun Shotgun Hammer [Rating: 12] Favorites ----------- Power Ion Engine Engine Ion Engine Propulsion Light Treads Treads Light Treads Wheel Wheel Utility Seismic Detector Device Seismic Detector Storage High-capacity Storage Unit Processor Targeting Computer Weapon Small Laser Energy Gun Small Laser Energy Cannon Beam Cannon Build | -11 -10 -10 -8 ------- Run | Yrd Mat Sub Rec Slots Evolved . | . . . . Power . | . . . . Propulsion . | . . . . Utility . | . . . . Weapon . | . . . . Parts Attached 19 | 7 8 2 2 Power 3 | 1 2 . . Engine 3 | 1 2 . . Core . | . . . . Reactor . | . . . . Propulsion 5 | 2 1 1 1 Treads 2 | 1 1 . . Leg . | . . . . Wheel 3 | 1 . 1 1 Hover . | . . . . Flight . | . . . . Utility 4 | 2 1 1 . Device 1 | 1 . . . Storage 2 | 1 1 . . Processor 1 | . . 1 . Hackware . | . . . . Protection . | . . . . Artifact . | . . . . Weapon 7 | 2 4 . 1 Energy Gun 4 | 2 2 . . Energy Cannon 3 | . 2 . 1 Ballistic Gun . | . . . . Ballistic Cannon . | . . . . Launcher . | . . . . Special Weapon . | . . . . Impact Weapon . | . . . . Slashing Weapon . | . . . . Piercing Weapon . | . . . . Special Melee Weapon . | . . . . Unidentified Prototypes . | . . . . Parts Lost 3 | . 1 2 . Power . | . . . . Propulsion 3 | . 1 2 . Utility . | . . . . Weapon . | . . . . Highest Loss Streak 2 | . 1 2 . To Critical Strikes . | . . . . Average Backups 12 | 2 10 18 18 Power 1 | . 1 2 2 Propulsion 2 | 1 2 2 1 Utility 4 | . 3 6 6 Weapon 3 | . 2 8 8 Tool/Special . | . . . . Unused Backups 18 | . 3 . 15 Power 1 | . . . 1 Propulsion 1 | . . . 1 Utility 8 | . 3 . 5 Weapon 8 | . . . 8 Tool/Special . | . . . . Average Slot Usage (%) 99 | . 99 99 100 Engine 14 | . 14 14 14 Treads 20 | . 20 27 . Wheel 7 | . 7 . 28 Device 12 | . 14 11 . Storage 14 | . 14 14 14 Processor 1 | . . 2 14 Energy Gun 15 | . 19 . . Energy Cannon 12 | . 7 28 28 Peak Build Rating 12 | 7 10 10 12 Average Rating 8 | 5 7 9 11 On Entrance 6 | . 7 10 9 Naked Turns . | . . . . Heaviest Build 54 | 14 53 53 54 Greatest Support 40 | 20 40 40 26 Greatest Overweight (x) 4 | . 4 3 2 Average Overweight (x) 1 | . 1 1 1 Largest Inventory Capacity 20 | 8 20 20 20 Average Capacity 16 | 7 16 20 20 Most Carried 20 | 4 20 20 20 Average Carried 12 | 2 11 19 19 Final Capacity 20 | 8 20 20 20 Final Carried 20 | 4 20 19 20 Class Distribution -------------------- 89% | Mutant 10% | Scavenger-Mutant Dominant Class ---------------- Mutant | -10/Materials Mutant | -10/Subcaves Mutant | -8/Recycling Resources | -11 -10 -10 -8 ----------- Run | Yrd Mat Sub Rec Matter Collected 500 | 246 219 10 25 Remotely . | . . . . Salvage Created 749 | 65 476 57 151 Parts 46 | 6 21 8 11 Haulers Intercepted 1 | . 1 . . Recyclers Shooed 1 | . 1 . . Parts Field Recycled . | . . . . Retrieved Matter . | . . . . Parts Self-Destructed 8 | . . 8 . Prevented . | . . . . Kills | -11 -10 -10 -8 ------- Run | Yrd Mat Sub Rec Combat Hostiles Destroyed 20 | . 13 4 3 Melee 1 | . 1 . . Guns 11 | . 11 . . Cannons 7 | . . 4 3 Classes Destroyed 8 | 2 4 . 2 Tunneler 1 | 1 . . . Hauler 1 | . 1 . . Recycler 2 | 1 1 . . Watcher 1 | . 1 . . Swarmer 10 | . 6 4 . Grunt 7 | . 7 . . Protector 1 | . . . 1 Sentry 2 | . . . 2 Best Kill Streak 6 | 2 6 4 3 Combat Bots Only 6 | . 6 4 3 Max Kills in Single Turn 1 | 1 1 1 1 Gunslinging . | . . . . Exploded . | . . . . Melee 1 | . 1 . . Uniques/NPCs Destroyed . | . . . . Combat | -11 -10 -10 -8 -------- Run | Yrd Mat Sub Rec Hostile Shots Fired 164 | . 54 99 11 Missed 48 | . 11 34 3 Hits 116 | . 43 65 8 Projectile 116 | . 43 65 8 Critical Strikes 1 | . . 1 . Damage Taken 1065 | . 502 445 118 Core 259 | . 97 95 67 Absorbed by Shields . | . . . . Regen/Repaired (Parts) 103 | . 103 . . Core Remaining (%) 100 | 100 . . . Volleys Fired 69 | 5 49 10 5 Largest 2 | 2 2 2 2 Hottest 135 | 90 128 128 135 Shots Fired 131 | 10 91 20 10 Gun 99 | 10 89 . . Cannon 32 | . 2 20 10 Launcher . | . . . . Special . | . . . . Kinetic . | . . . . Thermal 131 | 10 91 20 10 Explosive . | . . . . Electromagnetic . | . . . . Robot Hit Streak 12 | 3 12 2 10 Robot Miss Streak 4 | 1 4 3 . Penetration Max . | . . . . Secondary Targets 3 | . 3 . . Max Gunslinging Chain 1 | . 1 . . Shots Hit Robots 83 | 6 59 9 9 Core Hits 36 | 3 26 4 3 Critical Kills . | . . . . Critical Parts Destroyed . | . . . . Critical Strikes 3 | . 3 . . Burn 3 | . 3 . . Melee Attacks . | . . . . Impact . | . . . . Slashing . | . . . . Piercing . | . . . . Sneak Attacks . | . . . . Combat Hostiles . | . . . . Follow-up Attacks . | . . . . Damage Inflicted 1150 | 68 716 193 173 Guns 758 | 68 690 . . Cannons 387 | . 21 193 173 Explosions . | . . . . Melee . | . . . . Ramming 5 | . 5 . . Kinetic . | . . . . Thermal 1145 | 68 711 193 173 Explosive . | . . . . Electromagnetic . | . . . . Impact . | . . . . Slashing . | . . . . Piercing . | . . . . Highest Corruption 1 | . 1 1 1 Average Corruption 1 | . 1 1 1 Corruption Purged . | . . . . Corruption Blocked . | . . . . Effects 5 | . 2 3 . Message Errors 1 | . 1 . . Heat Flow Errors 1 | . . 1 . Energy Discharges 2 | . 1 1 . Data Loss (minor) 1 | . . 1 . Overload Shots . | . . . . Overflow Damage 10 | . . 2 8 Projectiles 10 | . . 2 8 Explosions . | . . . . Melee . | . . . . Knockbacks . | . . . . Impact . | . . . . Kinetic . | . . . . Secondary . | . . . . Self-Inflicted Damage 87 | . 87 . . Shots 1 | . 1 . . Rammed 1 | . 1 . . Targets Rammed 2 | . 2 . . Kicked . | . . . . Crushed 1 | . 1 . . Highest Temperature 421 | 90 421 118 314 Average Temperature 100 | 40 113 23 188 Received Heat Transfer 315 | . 141 156 18 Effects 6 | . 5 . 1 Shutdowns 1 | . 1 . . Interference 1 | . . . 1 Short Circuit 1 | . 1 . . Damage (major) 3 | . 3 . . Siege Activations . | . . . . Martial Activations . | . . . . Shielding Activations . | . . . . Robots Disrupted . | . . . . Combat Hostiles . | . . . . Robots Corrupted . | . . . . Combat Hostiles . | . . . . Parts Fried . | . . . . Impact Corruptions . | . . . . Robots Melted 2 | . 2 . . Combat Hostiles 1 | . 1 . . Parts Melted 6 | . 5 1 . Heat Transferred 2893 | 186 2069 333 305 Parts Sabotaged . | . . . . Parts Stolen . | . . . . Parts Stripped . | . . . . Power Chain Reactions . | . . . . Alert | -11 -10 -10 -8 ------- Run | Yrd Mat Sub Rec Maximum Alert Level 1 | . 1 . . Low Security (%) 93 | 100 92 . 100 Level 1 6 | . 7 . . Level 2 . | . . . . Level 3 . | . . . . Level 4 . | . . . . Level 5 . | . . . . High Security . | . . . . Max Security . | . . . . Peak Influence 229 | 5 229 . 75 Initial 60 | . 3 . 60 Average 91 | 1 99 . 53 Influence Increases 742 | 10 502 185 45 Destroy 0b10 Robot/C 380 | . 260 80 40 Destroy 0b10 Robot/NC 30 | 10 15 . 5 Destroy Leader 64 | . 64 . . Successful Hack 17 | . 17 . . Select Force Hacks 30 | . 30 . . Disable Machine 45 | . 45 . . Destroy Structure 41 | . 41 . . Lose Combat Pursuer 135 | . 30 105 . Influence Decreases 667 | 5 439 128 95 Entered New Map 100 | . 2 33 65 Time Decay 537 | 5 427 75 30 Lost Part 30 | . 10 20 . Squads Dispatched 4 | . 4 . . Investigation 2 | . 2 . . Extermination . | . . . . Reinforcement 2 | . 2 . . Assault . | . . . . Garrison . | . . . . Intercept . | . . . . Searches Triggered . | . . . . Construction Impeded . | . . . . Haulers Reinforced . | . . . . Active Scanning Responses . | . . . . Cargo Convoy Interrupts . | . . . . Stealth | -11 -10 -10 -8 --------- Run | Yrd Mat Sub Rec Distress Signals 1 | . 1 . . Communications Jammed . | . . . . Distress Signals . | . . . . Times Spotted 38 | . 27 7 4 Peak Tracking Total 6 | . 3 6 4 Tactical Retreats 5 | . 2 3 . Traps | -11 -10 -10 -8 ------- Run | Yrd Mat Sub Rec Traps Triggered 2 | . 2 . . Indirectly . | . . . . Trap Hack Attempts . | . . . . Triggered . | . . . . Disarmed . | . . . . Reprogrammed . | . . . . Reused . | . . . . Traps Extracted . | . . . . Installed . | . . . . Triggered . | . . . . Machines | -11 -10 -10 -8 ---------- Run | Yrd Mat Sub Rec Machines Disabled 3 | . 3 . . Max in Single Turn 3 | . 3 . . Machines Repaired . | . . . . Machines Dismantled . | . . . . Machines Sabotaged . | . . . . Overloaded Fab Kills . | . . . . Hacking | -11 -10 -10 -8 --------- Run | Yrd Mat Sub Rec Machines Accessed 8 | . 8 . . Terminals 5 | . 5 . . Fabricators . | . . . . Repair Stations 1 | . 1 . . Recycling Units 2 | . 2 . . Scanalyzers . | . . . . Garrison Access . | . . . . Total Hacks 23 | . 23 . . Successful 17 | . 17 . . Failed 6 | . 6 . . Catastrophic 1 | . 1 . . Database Lockouts . | . . . . Manual 18 | . 18 . . Terminals 13 | . 13 . . Fabricators . | . . . . Repair Stations 2 | . 2 . . Recycling Units 8 | . 8 . . Scanalyzers . | . . . . Garrison Access . | . . . . Terminal Hacks 4 | . 4 . . Robot Analysis 3 | . 3 . . Prototype ID Bank 1 | . 1 . . Fabricator Hacks . | . . . . Repair Station Hacks 2 | . 2 . . Scan Component 1 | . 1 . . Repair 1 | . 1 . . Recycling Unit Hacks 2 | . 2 . . Retrieve Components 2 | . 2 . . Scanalyzer . | . . . . Garrison Access Hacks . | . . . . Unauthorized Hacks 9 | . 9 . . Terminals 5 | . 5 . . Botnet 4 | . 4 . . Operators 1 | . 1 . . Fabricators . | . . . . Repair Stations . | . . . . Recycling Units 4 | . 4 . . Reject 1 | . 1 . . Recyclers 1 | . 1 . . Mask 1 | . 1 . . Tunnel 1 | . 1 . . Scanalyzers . | . . . . Garrison Access . | . . . . Data Cores Recovered . | . . . . Used . | . . . . Hacking Detections 6 | . 6 . . Full Trace Events 1 | . 1 . . Feedback Events . | . . . . Feedback Blocked . | . . . . Robot Schematics Acquired . | . . . . Robots Built . | . . . . Authchips . | . . . . Time . | . . . . Total Robot Build Rating . | . . . . Part Schematics Acquired . | . . . . Parts Built . | . . . . Authchips . | . . . . Time . | . . . . Total Part Build Rating . | . . . . Parts Repaired 1 | . 1 . . Time 26 | . 26 . . Parts Recycled . | . . . . Recycled Matter . | . . . . Retrieved Matter . | . . . . Retrieved Components 10 | . 10 . . Parts Scanalyzed . | . . . . Part Schematics Acquired . | . . . . Parts Damaged . | . . . . Bothacking | -11 -10 -10 -8 ------------ Run | Yrd Mat Sub Rec Used RIF Installer . | . . . . Robots Hacked . | . . . . Non-combat . | . . . . Combat . | . . . . Robot Hacks Applied . | . . . . Relay Couplers Released . | . . . . Fabnet Peak Effective % . | . . . . Robots Rewired . | . . . . Allies Hacked . | . . . . Hacks Repelled . | . . . . Allies | -11 -10 -10 -8 -------- Run | Yrd Mat Sub Rec Total Allies . | . . . . Largest Group . | . . . . Highest-Rated Group . | . . . . Highest-Rated Ally . | . . . . Total Orders . | . . . . Ally Attacks . | . . . . Total Damage . | . . . . Kills . | . . . . Allies Corrupted . | . . . . Allies Melted . | . . . . Intel | -11 -10 -10 -8 ------- Run | Yrd Mat Sub Rec Active Infowar (turns) 1381 | 11 1164 206 . Seismic 1381 | 11 1164 206 . Robot Analysis Total 3 | . 3 . . Derelict Logs Recovered 2 | . . 2 . Drone Launches . | . . . . Drone Recoveries . | . . . . Exploration | -11 -10 -10 -8 ------------- Run | Yrd Mat Sub Rec Turns Passed 1567 | 79 1166 261 61 Spaces Moved 780 | 34 612 97 37 Core 1 | 1 . . . Treads 327 | 30 204 93 . Legs . | . . . . Wheels 452 | 3 408 4 37 Hover . | . . . . Flight . | . . . . Fastest Speed 50 | 50 95 145 105 Average Speed 161 | 149 153 236 113 Slowest Speed 320 | 160 320 240 120 Overloaded Moves . | . . . . Propulsion Burnouts . | . . . . Robots Hopped . | . . . . Potential Cave-ins . | . . . . Cave-ins Triggered . | . . . . Exploration Rate (%) 31 | 3 98 14 10 Regions Visited 3 Branch Regions 2 Pre-discovered Areas 1 | . 1 . . Known Exits Taken . | . . . . Unknown Exits Taken 3 | 1 1 1 . Scrap Searched . | . . . . Spaces Dug . | . . . . Terrain Destroyed 38 | . 38 . . Melee . | . . . . Projectile . | . . . . AOE 38 | . 38 . . Terrain Rammed . | . . . . Walls Destroyed . | . . . . Machines Disabled . | . . . . Actions | -11 -10 -10 -8 --------- Run | Yrd Mat Sub Rec Total 954 | 49 750 108 47 Wait 49 | . 49 . . Move 777 | 33 611 96 37 Hop . | . . . . Pick Up 25 | 4 19 . 2 Fast Attach 13 | 7 6 . . Attach 4 | . 2 1 1 Detach . | . . . . Swap 4 | . 2 1 1 Drop 10 | . 10 . . Fire 69 | 5 49 10 5 Melee . | . . . . Ram . | . . . . Kick . | . . . . Crush 2 | . 2 . . Escape Stasis . | . . . . Rewire 1 | . . . 1 Trap . | . . . . Miscellaneous . | . . . . Route ------- -11/Scrapyard -10/Materials (discovered 5 exits: [*Mat x3] / [*Min] / [*Sub]) -10/Subcaves -8/Recycling History --------- Turn | Location | Event 9 | -11/Scrapyard | Discovered new exit (range 15) 80 | -11/Scrapyard | Entered Materials 217 | -10/Materials | Discovered new exit (range 3) 318 | -10/Materials | Build established: Mutant 489 | -10/Materials | Discovered new exit (range 16) 539 | -10/Materials | Repaired Lgt. Treads 980 | -10/Materials | Derelicts attacked the area 1045 | -10/Materials | Discovered new exit (range 10) 1154 | -10/Materials | Discovered new exit (range 16) 1206 | -10/Materials | Discovered new exit (range 7) 1246 | -10/Materials | Entered Subcaves 1258 | -10/Subcaves | Learned 2 Materials zone layouts 1436 | -10/Subcaves | Learned Materials stockpile data 1464 | -10/Subcaves | Core integrity fell below 50% 1492 | -10/Subcaves | Discovered new exit (range 8) 1507 | -10/Subcaves | Entered Recycling 1552 | -8/Recycling | Core integrity fell below 20% 1568 | -8/Recycling | Destroyed by H-55 Commando with Gauss Rifle Last Messages --------------- 01492_ EXIT=FOUND 01499_ Lgt. Treads destroyed. LOCATION=UNKNOWN GOAL=ESCAPE 01516_ Acquired 15 matter. 01521_ Acquired Particle Charger. 01525_ Acquired Hvy. Particle Cannon. 01528_ Acquired 10 matter. 01551_ Attempting to rewire B-36 Bruiser. 01551_ Y-45 Defender springs to life. 01551_ H-55 Commando springs to life. 01552_ I-25 Savior springs to life. 01557_ Y-45 Defender destroyed. 01560_ Destroyed Imp. Ion Engine. 01563_ I-25 Savior destroyed. 01564_ Slug penetrates Wall. 01566_ Overheating: System interference. 01566_ Targeting Computer temporarily disabled. 01567_ Y-45 Defender destroyed. 01568_ Slug penetrates Wall. Map ----- +----------------------------------------------------+ | ??????????????????????????????????? | | ??????????????????????????????????? | | ??????????????????????????????????? | | ??????????????????????????????????? | | ??????????????????????????????????? | | ??????????????????????????????????? | | ??????????????????????????????????? | | ??????????????????????????????????? | | ??????????????????????????????????? | | ??????????????????????????????????? | | ??????????????????????????????????? | | ???????#####??????????????????????? | | ???????# ###########????????????? | | ???????# # #????????????? | | ???????# # *% #????????????? | | ???????# # ! !#????????????? | | ???????# # #????????????? | | ???????# + % #????????????? | | ???????# # ]] #????????????? | | ???????# # #????????????? | | ???????# # #????????????? | | ???????# ###########????????????? | | ???????# #??????????????????????? | | ???????# ##########?????????????? | | ???????# =# #?????????????? | | ???????# =@# #?????????????? | | ???????#[!!# ] #?????????????? | | ???????+ *%h ! #?????????????? | | ???????# =# #?????????????? | | ???????# #! ! [ #?????????????? | | ???????# #= ! #?????????????? | | ???????# # ! % #?????????????? | | ???????# =# #?????????????? | | ???????# [%##########?????????????? | | ???????# [!??????????????????????? | | ???????# #??????????????????????? | | ???????# ???????????????????????? | | ???????# ???????????????????????? | | ???????# ???????????????????????? | | ???????# ???????????????????????? | | ???????# ???????????????????????? | | ???????? ???????????????????????? | | ??????????????????????????????????? | | ??????????????????????????????????? | | ??????????????????????????????????? | | ??????????????????????????????????? | | ??????????????????????????????????? | | ??????????????????????????????????? | | ??????????????????????????????????? | | ??????????????????????????????????? | +----------------------------------------------------+ Best States ------------- Heat Dissipation 25 Energy Generation 10 Energy Capacity 250 Matter Stores 300 Matter Capacity 300 Sight Range 16 Terrain Scan Density 10 Evasion (%) 41 Targeting Accuracy 5 Recoil Reduction 2 Item Schematics ----------------- None Robot Schematics ------------------ None Fabricated ------------ Nothing Repaired ---------- Lgt. Treads | 26% | -10/Materials Alien Tech Used ----------------- None Achievements -------------- None Challenges ------------ None Game ------ Seed RefineryCoolantActivator Manual? 0 Play Time 00:10:31 Cumulative 71.0 hours Start 2025.06.29 @ 15:03:11 End 2025.06.29 @ 15:13:01 Sessions 1 Manual Loads 0 Difficulty Rogue Special Mode None Game No. 87 Rogue 87 Adventurer 0 Explorer 0 Win Type - Total 1 Types 0/0/1/0/0/0/0/0/0/0 Lore% 41 Gallery% 49 Achievement% 42 Wizard Run 0 Options --------- Layout 1 ASCII 0 Keyboard 0 Movement Mouse Keybinds 0 Fullscreen 1 Font 24/Smallcaps Map View 50x35 Zoom Use 0% Tactical HUD 1 Map Filters NONE Filters NONE Steam 1 RUN: dd2578ec-7688-4a83-9a97-f638b2829eb0